bitfinex-derivatives/quotes_SOLF0:USTF0_20250522
["timestamp","ask_amount","ask_price","bid_price","bid_amount"]
[1747936039710,0.03989581,179.01,178.98,117.06]
[1747936040816,0.03989581,179.01,179.0,5.5848]
[1747936043018,9.581e-05,179.01,179.0,5.5848]
[1747936043317,5.21307063,179.08,179.06,5.5828]
[1747936044311,5.21307063,179.08,179.05,5.61925731]
[1747936045118,10.79557063,179.08,179.05,5.61925731]
[1747936045317,5.21307063,179.08,179.06,5.5828]
[1747936045520,5.21307063,179.08,179.05,0.03605731]
[1747936045816,5.61751133,179.09,179.05,0.03605731]
[1747936046020,5.61751133,179.09,179.06,5.5828]
[1747936046520,0.03531133,179.09,179.07,5.5826]
[1747936047021,0.03531133,179.09,179.08,5.5823]
[1747936053026,0.03531133,179.09,179.07,116.4]
[1747936053423,5.61761133,179.09,179.07,116.4]
[1747936053624,0.03531133,179.09,179.07,116.4]
[1747936053825,0.03531133,179.09,179.05,0.03605731]
[1747936054227,5.5828,179.07,179.05,0.03605731]
[1747936054425,0.03531133,179.09,179.05,0.03605731]
[1747936054930,5.5826,179.07,179.05,0.03605731]
[1747936055428,0.03531133,179.09,179.05,0.03605731]
[1747936055925,0.03531133,179.09,179.05,5.61925731]
[1747936056129,5.5826,179.08,179.05,5.61925731]
[1747936056428,0.03531133,179.09,179.05,5.61925731]
[1747936056429,0.03531133,179.09,179.06,5.5828]
[1747936056627,5.61751133,179.09,179.06,5.5828]
[1747936057434,5.5824,179.08,179.06,5.5828]
[1747936057732,5.5824,179.08,179.05,5.61925731]
[1747936058527,5.5826,179.07,179.05,0.03605731]
[1747936058831,0.03531133,179.09,179.05,0.03605731]
[1747936059831,0.03531133,179.09,179.06,116.36]
[1747936060232,0.03531133,179.09,179.08,5.5823]
[1747936064733,0.03531133,179.09,179.06,116.36]
[1747936065435,5.61761133,179.09,179.06,121.9427]
[1747936066238,5.5826,179.08,179.06,116.36]
[1747936067137,5.61741133,179.09,179.06,121.9429]
[1747936067737,0.03531133,179.09,179.07,5.5826]
[1747936068638,5.61741133,179.09,179.07,5.5826]
[1747936069446,0.03531133,179.09,179.07,5.5826]
[1747936070637,0.03531133,179.09,179.06,116.36]
[1747936070941,0.03531133,179.09,179.05,0.03605731]
[1747936071241,5.583,179.06,179.05,0.03605731]
[1747936071634,5.5837,179.04,179.02,116.36]
[1747936072537,6.0303,179.08,179.02,116.36]
[1747936072840,0.0372209,179.07,179.03,0.04219633]
[1747936073541,0.0372209,179.07,179.05,5.583]
[1747936074641,0.0372209,179.07,179.06,5.583]
[1747936081243,0.0372209,179.07,179.05,5.5832]
[1747936081444,0.0372209,179.07,179.03,0.04219633]
[1747936082144,0.0372209,179.07,179.06,5.583]
[1747936083646,0.0372209,179.07,179.06,121.683]
[1747936091547,2.09e-05,179.07,179.06,121.683]
[1747936093750,5.21307063,179.14,179.13,5.5808]
[1747936094350,5.21307063,179.14,179.1,116.08]
[1747936094754,5.2515817,179.14,179.1,116.11530506]
[1747936095055,5.5813,179.12,179.1,116.11530506]
[1747936095752,5.5814,179.11,179.1,116.11530506]
[1747936095954,5.5814,179.11,179.1,0.03530506]
[1747936096852,0.03851107,179.14,179.06,116.08]
[1747936097051,7.10337063,179.15,179.03,5.5838]
[1747936097252,5.5828,179.07,179.02,116.08]
[1747936097447,116.08,179.12,179.02,116.08]
[1747936097854,5.5831,179.06,179.05,0.03861326]
[1747936098654,5.5839,179.03,179.02,116.08]
[1747936098959,5.5839,179.03,179.01,5.65177373]
[1747936099257,5.5839,179.03,179.0,5.5846]
[1747936099562,5.62126119,179.03,179.0,5.62703688]
[1747936100364,0.03736119,179.03,179.01,5.5845]
[1747936100658,0.03736119,179.03,179.0,0.04243688]
[1747936101261,0.03736119,179.03,179.0,5.62703688]
[1747936101262,5.62146119,179.03,179.0,5.62703688]
[1747936101459,0.03736119,179.03,179.0,0.04243688]
[1747936102059,5.5844,179.02,179.0,0.04243688]
[1747936102761,0.03736119,179.03,179.0,0.04243688]
[1747936103357,5.5845,179.02,179.0,0.04243688]
[1747936103563,0.03736119,179.03,179.0,0.04243688]
[1747936103959,5.5845,179.01,179.0,0.04243688]
[1747936104663,5.62156119,179.03,179.0,0.04243688]
[1747936104863,0.03736119,179.03,179.0,0.04243688]
[1747936105265,5.5845,179.01,179.0,0.04243688]
[1747936106368,5.5843,179.02,179.0,0.04243688]
[1747936106664,0.03736119,179.03,179.0,0.04243688]
[1747936106858,0.03736119,179.03,179.02,5.5842]
[1747936107264,0.03736119,179.03,179.02,121.2242]
[1747936107464,3.182e-05,179.04,179.03,5.5839]
[1747936109174,115.64,179.12,179.02,115.64]
[1747936109370,6.91249787,179.15,179.02,115.64]
[1747936109772,6.91249787,179.15,179.1,5.5815]
[1747936110069,5.5805,179.14,179.1,5.5815]
[1747936110262,0.03860779,179.14,179.1,5.62071541]
[1747936111272,0.03860779,179.14,179.1,0.03921541]
[1747936111974,5.5812,179.12,179.1,0.03921541]
[1747936112377,0.03860779,179.14,179.1,0.03921541]
[1747936112581,0.03860779,179.14,179.1,5.62071541]
[1747936112880,0.03860779,179.14,179.1,0.03921541]
[1747936113877,5.581,179.13,179.1,5.62091541]
[1747936114379,0.03860779,179.14,179.1,5.62091541]
[1747936114672,5.5808,179.13,179.1,5.62091541]
[1747936114877,0.03860779,179.14,179.1,0.03921541]
[1747936115278,5.5811,179.13,179.1,5.62081541]
[1747936115478,0.03860779,179.14,179.1,0.03921541]
[1747936115979,5.5814,179.11,179.1,0.03921541]
[1747936117282,5.5812,179.12,179.1,0.03921541]
[1747936118572,764.07296746,179.11,178.96,8.47791558]
[1747936118872,8.98246746,179.04,178.96,8.47791558]
[1747936119077,117.6905,179.03,178.96,8.47791558]
[1747936119278,5.5851,178.99,178.96,8.47791558]
[1747936119481,5.5851,178.99,178.97,0.0417085]
[1747936120784,5.5854,178.98,178.97,0.0417085]
[1747936143202,5.5854,178.98,178.97,8.5e-06]
[1747936143597,5.5876,178.92,178.87,1.9878]
[1747936143903,117.1438,178.99,178.87,1.9878]
[1747936144099,5.5878,178.91,178.87,1.9878]
[1747936144402,117.1438,178.99,178.86,115.14]
[1747936144604,5.5876,178.92,178.91,0.04023777]
[1747936145396,0.04110118,178.94,178.91,0.04023777]
[1747936146504,0.04110118,178.94,178.93,5.587]
[1747936155609,6.91249787,179.07,178.91,0.04023777]
[1747936155913,115.14,179.05,178.91,1.9938]
[1747936156112,5.5841,179.03,178.91,3.9229]
[1747936156308,5.5841,179.03,178.99,5.5848]
[1747936156705,0.03861258,179.03,178.99,0.042406]
[1747936157912,5.5842,179.02,178.99,5.627406]
[1747936158415,0.03861258,179.03,178.99,5.627406]
[1747936158614,5.5843,179.02,178.99,5.627406]
[1747936158914,0.03861258,179.03,178.99,0.042406]
[1747936159617,5.5848,179.0,178.99,0.042406]
[1747936168423,120.7246,179.01,178.99,0.042406]
[1747936168619,115.14,179.01,178.99,0.042406]
[1747936168823,5.5848,179.0,178.99,0.042406]
[1747936173425,125.94771392,179.01,178.99,0.042406]
[1747936173927,120.36301392,179.01,178.99,0.042406]
[1747936174329,115.14,179.01,178.99,0.042406]
[1747936175128,5.5848,179.0,178.99,0.042406]
[1747936177424,125.94761392,179.01,178.99,0.042406]
[1747936177631,120.36301392,179.01,178.99,0.042406]
[1747936178130,5.5848,179.0,178.99,0.042406]
[1747936180434,125.94761392,179.01,178.99,0.042406]
[1747936182335,125.94761392,179.01,178.99,5.627506]
[1747936182534,120.36301392,179.01,178.99,0.042406]
[1747936183132,120.36301392,179.01,179.0,5.5848]
[1747936183426,5.22301392,179.01,179.0,5.5848]
[1747936183631,10.80731392,179.02,179.0,5.5848]
[1747936184334,10.80731392,179.02,178.99,5.627406]
[1747936185137,5.5845,179.01,178.99,5.627406]
[1747936187239,5.2616265,179.03,179.0,5.5845]
[1747936188636,5.5842,179.02,179.0,5.5845]
[1747936188833,5.5842,179.02,178.99,5.627406]
[1747936189638,5.5845,179.01,178.99,5.627406]
[1747936190041,0.03861258,179.03,178.99,0.042406]
[1747936190336,5.5848,179.0,178.99,0.042406]
[1747936198738,10.80781392,179.0,178.99,0.042406]
[1747936199745,10.80781392,179.0,178.99,6e-06]
[1747936199947,124.52781392,179.0,178.99,6e-06]
[1747936201334,126.21729787,179.0,178.99,6e-06]
[1747936203645,5.5874,178.92,178.88,120.03117923]
[1747936203946,120.63249787,179.0,178.9,5.5879]
[1747936204246,5.5873,178.93,178.9,5.5879]
[1747936204642,5.62891717,178.93,178.9,5.62776095]
[1747936206643,5.62891717,178.93,178.9,0.03986095]
[1747936206644,0.04161717,178.93,178.9,0.03986095]
[1747936207251,5.5876,178.91,178.9,0.03986095]
[1747936209554,0.04161717,178.93,178.9,0.03986095]
[1747936210653,0.04161717,178.93,178.9,5.62766095]
[1747936211853,0.04161717,178.93,178.9,0.03986095]
[1747936212054,5.62861717,178.93,178.9,0.03986095]
[1747936212352,0.04161717,178.93,178.9,0.03986095]
[1747936212743,5.5874,178.92,178.9,0.03986095]
[1747936213054,0.04161717,178.93,178.9,0.03986095]
[1747936213555,5.5876,178.91,178.9,0.03986095]
[1747936217860,5.5891,178.87,178.84,5.5898]
[1747936218263,5.5893,178.86,178.83,5.5901]
[1747936218561,113.76,178.93,178.8,115.6983]
[1747936218860,0.04023361,178.88,178.81,5.5906]
[1747936219060,0.04023361,178.88,178.8,115.6983]
[1747936219656,5.5894,178.86,178.83,5.5901]
[1747936219856,0.04023361,178.88,178.8,115.6983]
[1747936220256,0.04023361,178.88,178.87,5.5889]
[1747936222559,5.2248665,178.92,178.91,5.5876]
[1747936224060,0.04176442,178.93,178.92,5.5873]
[1747936224355,0.04176442,178.93,178.9,0.03833538]
[1747936224961,5.5876,178.91,178.9,0.03833538]
[1747936230067,5.5876,178.91,178.9,3.538e-05]
[1747936240673,5.5873,178.92,178.9,3.538e-05]
[1747936240873,113.82176442,178.93,178.9,3.538e-05]
[1747936241267,5.5876,178.91,178.9,3.538e-05]
[1747936247478,5.5874,178.92,178.9,3.538e-05]
[1747936247674,113.82176442,178.93,178.9,3.538e-05]
[1747936247875,5.5873,178.92,178.9,3.538e-05]
[1747936248379,113.82176442,178.93,178.9,3.538e-05]
[1747936248681,0.04176442,178.93,178.9,3.538e-05]
[1747936249683,0.04176442,178.93,178.91,5.5876]
[1747936249881,5.62876442,178.93,178.91,5.5876]
[1747936250784,0.04176442,178.93,178.9,3.538e-05]
[1747936251178,0.04176442,178.93,178.91,5.5875]
[1747936252289,0.04176442,178.93,178.92,5.5873]
[1747936253180,0.04176442,178.93,178.9,115.40003538]
[1747936253387,0.04176442,178.93,178.91,5.5875]
[1747936253578,0.04176442,178.93,178.9,115.40003538]
[1747936253778,0.04176442,178.93,178.91,5.5874]
[1747936254187,0.04176442,178.93,178.9,115.40003538]
[1747936254378,0.04176442,178.93,178.91,5.5874]
[1747936254786,0.04176442,178.93,178.9,115.40003538]
[1747936255186,0.04176442,178.93,178.9,120.98783538]
[1747936255385,5.62896442,178.93,178.9,120.98783538]
[1747936255882,5.5873,178.92,178.9,120.98783538]
[1747936256088,0.04176442,178.93,178.9,120.98783538]
[1747936256986,5.62886442,178.93,178.9,120.98783538]
[1747936257491,0.04176442,178.93,178.9,115.40003538]
[1747936257681,0.04176442,178.93,178.9,3.538e-05]
[1747936258186,5.5873,178.92,178.9,3.538e-05]
[1747936258688,5.5876,178.91,178.9,3.538e-05]
[1747936261494,0.04176442,178.93,178.9,3.538e-05]
[1747936262095,0.04176442,178.93,178.91,5.5874]
[1747936262391,0.04176442,178.93,178.9,3.538e-05]
[1747936262595,5.62876442,178.93,178.9,5.58783538]
[1747936263295,5.62876442,178.93,178.91,5.5876]
[1747936263795,5.5874,178.92,178.9,5.58793538]
[1747936264489,5.5874,178.92,178.9,3.538e-05]
[1747936264691,5.5876,178.91,178.9,3.538e-05]
[1747936265097,5.5875,178.92,178.9,3.538e-05]
[1747936265795,5.5876,178.91,178.9,3.538e-05]
[1747936267898,0.04176442,178.93,178.9,3.538e-05]
[1747936268498,5.62896442,178.93,178.9,5.58783538]
[1747936268995,5.5876,178.91,178.9,3.538e-05]
[1747936271398,0.04176442,178.93,178.9,3.538e-05]
[1747936272298,5.5874,178.92,178.9,3.538e-05]
[1747936274701,5.5876,178.91,178.9,3.538e-05]
[1747936276801,5.5873,178.92,178.9,3.538e-05]
[1747936277098,0.04176442,178.93,178.9,5.58783538]
[1747936277303,5.62886442,178.93,178.9,5.58783538]
[1747936277604,5.62886442,178.93,178.91,5.5875]
[1747936277899,0.04176442,178.93,178.9,3.538e-05]
[1747936278703,0.04176442,178.93,178.92,5.5873]
[1747936290106,6.442e-05,178.93,178.92,5.5873]
[1747936290309,5.2248665,179.0,178.9,120.43713538]
[1747936291008,5.2248665,179.0,178.91,113.94]
[1747936291206,0.03856409,178.97,178.94,0.03847297]
[1747936291409,5.5864,178.95,178.94,0.03847297]
[1747936291812,0.03856409,178.97,178.94,0.03847297]
[1747936292013,5.5862,178.96,178.94,0.03847297]
[1747936293616,5.62436409,178.97,178.94,0.03847297]
[1747936293816,5.62436409,178.97,178.94,5.62497297]
[1747936294819,5.5861,178.96,178.94,0.03847297]
[1747936295118,0.03856409,178.97,178.94,0.03847297]
[1747936295317,0.03856409,178.97,178.95,5.5864]
[1747936295521,0.03856409,178.97,178.94,0.03847297]
[1747936295821,0.03856409,178.97,178.96,5.5861]
[1747936299321,0.03856409,178.97,178.95,119.5063]
[1747936299918,0.03856409,178.97,178.96,5.5861]
[1747936301718,0.03856409,178.97,178.95,113.92]
[1747936302116,5.62436409,178.97,178.95,113.92]
[1747936302316,0.03856409,178.97,178.95,113.92]
[1747936302516,0.03856409,178.97,178.94,0.03847297]
[1747936302723,5.5864,178.95,178.94,0.03847297]
[1747936302924,0.03856409,178.97,178.94,0.03847297]
[1747936303226,5.5864,178.96,178.94,0.03847297]
[1747936303925,5.5864,178.96,178.94,5.62517297]
[1747936304125,5.5864,178.96,178.94,0.03847297]
[1747936305625,5.62446409,178.97,178.94,0.03847297]
[1747936305827,0.03856409,178.97,178.94,0.03847297]
[1747936306026,0.03856409,178.97,178.95,5.5862]
[1747936306226,0.03856409,178.97,178.94,0.03847297]
[1747936306830,5.62456409,178.97,178.94,5.62497297]
[1747936310036,0.03856409,178.97,178.95,5.5863]
[1747936310339,0.03856409,178.97,178.94,0.03847297]
[1747936310633,5.62436409,178.97,178.94,5.62497297]
[1747936315643,5.5861,178.96,178.94,5.62497297]
[1747936316444,5.5864,178.95,178.94,0.03847297]
[1747936318148,0.03856409,178.97,178.94,0.03847297]
[1747936318750,0.03856409,178.97,178.95,5.5864]
[1747936318950,0.03856409,178.97,178.94,0.03847297]
[1747936319249,5.62456409,178.97,178.94,5.62507297]
[1747936319751,0.03856409,178.97,178.94,5.62507297]
[1747936320349,5.62446409,178.97,178.94,5.62507297]
[1747936322953,0.03856409,178.97,178.95,5.5864]
[1747936323855,0.03856409,178.97,178.96,5.5861]
[1747936330755,0.03856409,178.97,178.94,0.03847297]
[1747936331858,5.5864,178.95,178.94,0.03847297]
[1747936334264,5.5862,178.96,178.94,0.03847297]
[1747936335164,5.5864,178.95,178.94,0.03847297]
[1747936335366,0.03856409,178.97,178.94,0.03847297]
[1747936336169,5.5863,178.96,178.94,0.03847297]
[1747936338259,5.5864,178.95,178.94,0.03847297]
[1747936338670,5.5864,178.96,178.94,0.03847297]
[1747936340368,5.5864,178.95,178.94,0.03847297]
[1747936348081,5.5879,178.9,178.89,113.88]
[1747936348378,128.08457745,178.96,178.85,600.94427923]
[1747936348770,5.5889,178.87,178.85,118.20427923]
[1747936348968,128.08457745,178.96,178.85,118.20427923]
[1747936349277,5.5892,178.86,178.85,118.20427923]
[1747936350074,5.6308528,178.87,178.85,118.20427923]
[1747936350790,0.0418528,178.87,178.85,113.9]
[1747936351576,5.6308528,178.87,178.85,113.9]
[1747936351772,0.0418528,178.87,178.85,113.9]
[1747936353084,5.6309528,178.87,178.85,113.9]
[1747936353587,5.5892,178.86,178.85,113.9]
[1747936354883,0.0418528,178.87,178.84,0.02329894]
[1747936355079,0.0418528,178.87,178.85,5.5895]
[1747936358189,5.6308528,178.87,178.84,5.61299894]
[1747936359489,5.6308528,178.87,178.85,5.5894]
[1747936360391,0.0418528,178.87,178.85,5.5894]
[1747936360991,5.6307528,178.87,178.84,5.61299894]
[1747936361982,0.0418528,178.87,178.85,5.5895]
[1747936365493,0.0418528,178.87,178.86,5.5892]
[1747936365989,113.64,178.96,178.85,115.5338]
[1747936366195,113.64,178.96,178.85,119.3388]
[1747936366490,6.91249787,178.97,178.85,119.3388]
[1747936366996,10.8110665,178.96,178.93,5.5868]
[1747936367189,10.85139179,178.96,178.93,5.62466165]
[1747936367693,5.5864,178.95,178.93,0.03786165]
[1747936371191,0.04032529,178.96,178.93,5.62476165]
[1747936371192,5.62652529,178.96,178.93,5.62476165]
[1747936372395,0.04032529,178.96,178.93,5.62476165]
[1747936372889,0.04032529,178.96,178.94,5.5865]
[1747936373393,0.04032529,178.96,178.93,0.03786165]
[1747936373595,0.04032529,178.96,178.94,5.5867]
[1747936374691,0.04032529,178.96,178.93,5.62476165]
[1747936375299,0.04032529,178.96,178.94,5.5866]
[1747936375798,0.04032529,178.96,178.93,0.03786165]
[1747936376493,5.5864,178.95,178.93,0.03786165]
[1747936377002,0.04032529,178.96,178.93,0.03786165]
[1747936377497,5.5866,178.95,178.93,0.03786165]
[1747936379702,5.62642529,178.96,178.93,5.62476165]
[1747936379996,0.04032529,178.96,178.93,5.62476165]
[1747936381101,5.62652529,178.96,178.93,5.62476165]
[1747936383501,5.5864,178.95,178.93,0.03786165]
[1747936383800,0.04032529,178.96,178.93,0.03786165]
[1747936384103,5.5867,178.94,178.93,0.03786165]
[1747936389305,5.62662529,178.96,178.93,0.03786165]
[1747936390505,5.62662529,178.96,178.93,5.62486165]
[1747936390703,5.5864,178.95,178.93,0.03786165]
[1747936391408,5.5867,178.94,178.93,0.03786165]
[1747936392205,5.5865,178.95,178.93,0.03786165]
[1747936394110,5.62652529,178.96,178.93,5.62476165]
[1747936394610,0.04032529,178.96,178.93,5.62476165]
[1747936394908,0.04032529,178.96,178.93,0.03786165]
[1747936395209,5.5864,178.95,178.93,0.03786165]
[1747936397011,5.5867,178.94,178.93,0.03786165]
[1747936397613,5.5865,178.95,178.93,0.03786165]
[1747936397814,0.04032529,178.96,178.93,0.03786165]
[1747936398319,0.04032529,178.96,178.94,5.5867]
[1747936400115,0.04032529,178.96,178.95,5.5864]
[1747936401920,0.04032529,178.96,178.94,5.5866]
[1747936402116,0.04032529,178.96,178.93,0.03786165]
[1747936402822,0.04032529,178.96,178.95,5.5864]
[1747936408521,2.529e-05,178.96,178.95,5.5864]
[1747936414631,2.529e-05,178.96,178.95,118.5064]
[1747936434245,2.529e-05,178.96,178.95,124.25310259]
[1747936434845,2.529e-05,178.96,178.95,124.25331474]
[1747936438749,2.529e-05,178.96,178.95,11.33331474]
[1747936438949,2.529e-05,178.96,178.95,224.6464]
[1747936440853,2.529e-05,178.96,178.95,118.5064]
[1747936443556,2.529e-05,178.96,178.95,112.92]
[1747936444556,2.529e-05,178.96,178.93,0.03786165]
[1747936445652,5.5867,178.94,178.93,0.03786165]
[1747936446361,5.587,178.93,178.92,4.30427923]
[1747936447662,5.587,178.93,178.91,0.03807903]
[1747936448759,5.5869,178.94,178.91,5.62567903]
[1747936448959,2.529e-05,178.96,178.91,0.03807903]
[1747936449161,2.529e-05,178.96,178.95,5.5864]
[1747936449656,2.529e-05,178.96,178.94,5.5866]
[1747936450460,5.58612529,178.96,178.93,5.5869]
[1747936450656,2.529e-05,178.96,178.92,112.38]
[1747936450960,5.5866,178.95,178.92,5.5872]
[1747936451161,2.529e-05,178.96,178.91,112.41807903]
[1747936451662,5.5869,178.94,178.91,118.00547903]
[1747936452664,5.5871,178.93,178.91,118.00547903]
[1747936453765,5.5871,178.93,178.91,112.41807903]
[1747936454365,5.5868,178.94,178.91,118.00567903]
[1747936455466,5.5868,178.94,178.91,5.62567903]
[1747936456477,5.5871,178.93,178.91,5.62567903]
[1747936456877,2.529e-05,178.96,178.92,5.5873]
[1747936457271,2.529e-05,178.96,178.91,0.03807903]
[1747936457473,5.5869,178.94,178.91,0.03807903]
[1747936457672,2.529e-05,178.96,178.91,0.03807903]
[1747936457873,5.5872,178.93,178.91,0.03807903]
[1747936460575,2.529e-05,178.96,178.91,0.03807903]
[1747936461173,2.529e-05,178.96,178.95,5.5864]
[1747936465782,2.529e-05,178.96,178.93,5.5869]
[1747936465978,2.529e-05,178.96,178.91,0.03807903]
[1747936466484,5.5867,178.95,178.92,5.5872]
[1747936466784,2.529e-05,178.96,178.91,0.03807903]
[1747936466987,5.5871,178.93,178.91,0.03807903]
[1747936467185,2.529e-05,178.96,178.91,0.03807903]
[1747936467383,2.529e-05,178.96,178.89,4.30427923]
[1747936468290,2.529e-05,178.96,178.91,0.02951106]
[1747936468586,5.2248665,178.94,178.91,0.02951106]
[1747936468787,2.0287,178.93,178.91,0.02951106]
[1747936468988,2.0287,178.93,178.84,117.9696]
[1747936469192,2.0287,178.93,178.84,112.38]
[1747936469586,2.0287,178.93,178.81,4.30427923]
[1747936470081,0.03843388,178.89,178.82,5.5902]
[1747936470285,112.43843388,178.89,178.82,5.5902]
[1747936470486,112.43843388,178.89,178.81,9.89497923]
[1747936470992,5.5899,178.84,178.81,4.30427923]
[1747936471190,5.63026675,178.84,178.81,4.30427923]
[1747936471692,0.04036675,178.84,178.81,4.30427923]
[1747936472091,0.04036675,178.84,178.8,5.5911]
[1747936472693,5.5904,178.83,178.8,5.5911]
[1747936473195,5.5904,178.83,178.79,5.5913]
[1747936473395,5.5905,178.82,178.79,5.5913]
[1747936473791,0.04036675,178.84,178.8,5.591]
[1747936474196,5.5904,178.83,178.77,595.18]
[1747936474395,5.5904,178.83,178.79,5.5914]
[1747936474698,0.04036675,178.84,178.79,5.5914]
[1747936475597,5.5905,178.82,178.79,5.5914]
[1747936475898,0.04036675,178.84,178.79,5.5914]
[1747936476102,0.04036675,178.84,178.8,5.591]
[1747936476797,0.04036675,178.84,178.77,595.18]
[1747936476798,0.04036675,178.84,178.82,5.5904]
[1747936478098,0.04036675,178.84,178.83,5.5901]
[1747936480199,0.04036675,178.84,178.82,5.5903]
[1747936480499,0.04036675,178.84,178.81,112.44]
[1747936481102,0.04036675,178.84,178.83,5.5901]
[1747936495510,0.04036675,178.84,178.83,111.8101]
[1747936498410,0.04036675,178.84,178.83,5.5901]
[1747936502008,0.04036675,178.84,178.82,112.44]
[1747936502513,0.04036675,178.84,178.83,5.5901]
[1747936507714,0.04036675,178.84,178.83,11.34533469]
[1747936509016,0.04036675,178.84,178.83,5.5901]
[1747936509409,0.04036675,178.84,178.82,118.0303]
[1747936509614,0.04036675,178.84,178.82,112.44]
[1747936510320,0.04036675,178.84,178.82,118.19523469]
[1747936510511,0.04036675,178.84,178.82,112.44]
[1747936511019,0.04036675,178.84,178.82,118.19523469]
[1747936511621,0.04036675,178.84,178.82,112.44]
[1747936511922,0.04036675,178.84,178.83,5.5901]
[1747936514528,6.675e-05,178.84,178.83,5.5901]
[1747936516529,6.675e-05,178.84,178.83,118.0101]
[1747936519432,5.2248665,178.91,178.89,5.5882]
[1747936519730,5.2248665,178.91,178.87,112.42]
[1747936519931,5.2248665,178.91,178.88,112.42]
[1747936520231,5.2248665,178.91,178.9,5.5879]
[1747936521233,0.03945901,178.92,178.91,5.5876]
[1747936524833,0.03945901,178.92,178.89,0.03913283]
[1747936526824,0.03945901,178.92,178.91,5.5876]
[1747936538541,5.901e-05,178.92,178.91,5.5876]
[1747936538743,5.2248665,179.02,178.9,8.99423745]
[1747936538934,10.8091665,179.02,178.9,11.06273745]
[1747936539134,5.5843,179.02,178.98,5.5852]
[1747936539335,5.5843,179.02,178.98,112.34]
[1747936539645,5.6262431,179.02,178.98,112.37618558]
[1747936540241,0.0419431,179.02,178.98,112.37618558]
[1747936541341,5.5848,179.01,178.98,112.37618558]
[1747936541541,0.0419431,179.02,178.98,112.37618558]
[1747936542741,0.0419431,179.02,179.0,5.5846]
[1747936543642,0.0419431,179.02,179.01,5.5845]
[1747936547845,0.0419431,179.02,178.98,0.03618558]
[1747936548046,5.5846,179.01,178.98,0.03618558]
[1747936548239,0.0419431,179.02,178.98,0.03618558]
[1747936548646,0.0419431,179.02,178.98,5.62138558]
[1747936548848,0.0419431,179.02,178.98,0.03618558]
[1747936549146,5.585,179.0,178.98,0.03618558]
[1747936551445,0.0419431,179.02,178.98,0.03618558]
[1747936551446,5.5846,179.01,178.98,5.62158558]
[1747936551745,0.0419431,179.02,178.98,0.03618558]
[1747936552047,5.5847,179.01,178.98,0.03618558]
[1747936552241,0.0419431,179.02,178.98,0.03618558]
[1747936552638,5.6262431,179.02,178.99,5.5849]
[1747936553047,5.6262431,179.02,178.98,0.03618558]
[1747936553348,5.6262431,179.02,178.99,5.585]
[1747936553543,0.0419431,179.02,178.99,5.585]
[1747936553849,0.0419431,179.02,178.98,112.35618558]
[1747936554449,0.0419431,179.02,179.0,5.5848]
[1747936555645,5.2248665,179.1,179.01,597.79423745]
[1747936555846,5.2248665,179.1,179.05,8.99423745]
[1747936556044,5.2248665,179.1,179.06,112.32]
[1747936556346,5.2248665,179.1,179.09,5.582]
[1747936557651,0.03628936,179.11,179.1,5.5817]
[1747936557848,0.03628936,179.11,179.1,117.9017]
[1747936558448,0.03628936,179.11,179.1,112.32]
[1747936558847,0.03628936,179.11,179.1,117.9017]
[1747936559651,0.03628936,179.11,179.1,112.32]
[1747936560252,0.03628936,179.11,179.1,117.9017]
[1747936561149,7.2178665,179.24,179.1,112.32]
[1747936561354,3.9761,179.23,179.1,112.32]
[1747936561647,5.5791,179.19,179.1,112.32]
[1747936562149,0.03979477,179.16,179.15,5.5799]
[1747936562452,0.03924682,179.17,179.15,112.3]
[1747936562650,0.04204185,179.18,179.15,112.3]
[1747936563244,0.04204185,179.18,179.17,5.5795]
[1747936564153,0.04204185,179.18,179.16,5.5796]
[1747936564354,0.04204185,179.18,179.17,113.38]
[1747936564852,0.04204185,179.18,179.17,118.9595]
[1747936566055,5.5769,179.26,179.17,113.38]
[1747936566449,2.0552,179.28,179.17,113.38]
[1747936566650,5.5771,179.25,179.17,113.38]
[1747936566955,0.04029938,179.23,179.19,0.03808671]
[1747936567147,0.04029938,179.23,179.2,5.5783]
[1747936567356,0.04029938,179.23,179.21,113.36]
[1747936567653,0.04029938,179.23,179.21,118.9381]
[1747936567852,0.04029938,179.23,179.21,113.36]
[1747936568256,0.04029938,179.23,179.22,5.578]
[1747936568854,0.04029938,179.23,179.21,118.9382]
[1747936569451,0.04029938,179.23,179.21,113.36]
[1747936569953,0.04029938,179.23,179.22,5.578]
[1747936571757,5.5757,179.3,179.21,113.36]
[1747936572162,1.8995,179.31,179.21,113.36]
[1747936572867,0.03719604,179.28,179.27,5.5761]
[1747936573059,0.03719604,179.28,179.27,118.8961]